bitfinex/quotes_SOLUSD_20241225
["timestamp","ask_amount","ask_price","bid_price","bid_amount"]
[1735101259400,10.0035,199.93,199.81,15.04597367]
[1735101259569,15.04597367,199.9,199.81,15.04597367]
[1735101259769,15.04597367,199.92,199.85,15.04597367]
[1735101259990,35.04597367,199.94,199.85,15.04597367]
[1735101260471,15.04597367,199.9,199.81,15.04597367]
[1735101260878,15.04597367,199.9,199.81,22.88579698]
[1735101261295,15.04597367,199.9,199.81,15.04597367]
[1735101261483,15.04597367,199.88,199.81,15.04597367]
[1735101261680,23.776884,199.93,199.79,7.83982331]
[1735101261681,15.04597367,199.86,199.79,7.83982331]
[1735101262091,15.04597367,199.86,199.78,1.5275]
[1735101264273,9.63154331,199.85,199.78,1.5275]
[1735101264472,9.63154331,199.81,199.76,7.83982331]
[1735101264777,9.63154331,199.81,199.74,15.67964663]
[1735101264778,9.63154331,199.81,199.75,7.83982331]
[1735101265373,9.63154331,199.81,199.73,19.05746662]
[1735101265773,9.63154331,199.79,199.73,9.42592331]
[1735101265987,9.63154331,199.78,199.73,7.83982331]
[1735101266373,9.63154331,199.78,199.71,17.47136662]
[1735101267199,9.63154331,199.78,199.71,9.63154331]
[1735101268184,9.63154331,199.78,199.7,9.63154331]
[1735101269314,9.63154331,199.77,199.7,9.63154331]
[1735101270003,9.63154331,199.76,199.69,9.63154331]
[1735101271028,9.63154331,199.73,199.66,39.19911658]
[1735101271312,9.63154331,199.73,199.66,9.63154331]
[1735101271492,9.63154331,199.72,199.65,17.47136662]
[1735101271693,9.63154331,199.72,199.65,9.63154331]
[1735101271899,9.63154331,199.71,199.64,9.63154331]
[1735101272989,0.12549,199.76,199.64,9.63154331]
[1735101273188,9.63154331,199.73,199.65,9.63154331]
[1735101273394,9.63154331,199.74,199.67,9.63154331]
[1735101274428,20.0,199.77,199.69,9.63154331]
[1735101274595,29.63154331,199.77,199.69,9.63154331]
[1735101275225,9.63154331,199.77,199.69,9.63154331]
[1735101275434,0.12549,199.79,199.69,9.63154331]
[1735101275739,9.63154331,199.76,199.69,9.63154331]
[1735101278828,9.63154331,199.77,199.69,9.63154331]
[1735101279023,20.0,199.79,199.71,9.63154331]
[1735101279238,9.63154331,199.8,199.72,9.63154331]
[1735101285037,0.12549,199.82,199.73,1.6194]
[1735101285339,9.63154331,199.8,199.73,1.6194]
[1735101285568,20.0,199.84,199.73,1.6194]
[1735101285868,20.0,199.84,199.74,9.63154331]
[1735101286172,9.63154331,199.82,199.74,9.63154331]
[1735101287566,9.63154331,199.82,199.74,10.38227994]
[1735101288076,20.0,199.87,199.76,9.63154331]
[1735101288239,9.63154331,199.81,199.74,9.63154331]
[1735101288569,9.63154331,199.8,199.73,1.6194]
[1735101291571,9.63154331,199.81,199.73,11.25094331]
[1735101292086,20.0,199.83,199.75,9.63154331]
[1735101292373,9.63154331,199.85,199.77,9.63154331]
[1735101292576,9.63154331,199.85,199.78,9.63154331]
[1735101294141,9.63154331,199.85,199.76,0.750721]
[1735101294347,9.63154331,199.81,199.73,11.25094331]
[1735101294576,10.0061,199.88,199.73,1.6194]
[1735101294577,9.63154331,199.8,199.73,1.6194]
[1735101294791,9.63154331,199.78,199.73,1.6194]
[1735101297984,9.63154331,199.77,199.7,9.63154331]
[1735101299585,9.63154331,199.78,199.71,9.63154331]
[1735101300286,9.63154331,199.77,199.68,1.5169]
[1735101300498,9.63154331,199.77,199.7,9.63154331]
[1735101300884,9.63154331,199.78,199.71,9.63154331]
[1735101302301,9.63154331,199.81,199.74,9.63154331]
[1735101302475,9.63154331,199.82,199.75,9.63154331]
[1735101303413,9.63154331,199.81,199.74,9.63154331]
[1735101303576,9.63154331,199.8,199.68,1.5169]
[1735101303775,9.63154331,199.8,199.72,9.63154331]
[1735101303975,9.63154331,199.79,199.72,9.63154331]
[1735101304500,9.63154331,199.81,199.74,9.63154331]
[1735101304702,29.63154331,199.82,199.74,9.63154331]
[1735101304882,29.63154331,199.82,199.75,9.63154331]
[1735101305798,29.63154331,199.82,199.74,9.63154331]
[1735101305977,9.63154331,199.81,199.74,9.63154331]
[1735101306399,9.63154331,199.8,199.73,9.63154331]
[1735101306602,9.63154331,199.79,199.72,9.63154331]
[1735101308807,9.63154331,199.77,199.7,9.63154331]
[1735101308974,9.63154331,199.73,199.68,9.35672331]
[1735101309504,9.63154331,199.73,199.68,1.5169]
[1735101309889,9.63154331,199.72,199.66,7.83982331]
[1735101310276,9.63154331,199.72,199.64,17.47136662]
[1735101311406,9.63154331,199.72,199.64,9.63154331]
[1735101311585,9.63154331,199.72,199.65,9.63154331]
[1735101313101,9.63154331,199.69,199.63,9.38572331]
[1735101313700,9.63154331,199.68,199.63,7.83982331]
[1735101313900,9.63154331,199.67,199.63,7.83982331]
[1735101314088,9.63154331,199.67,199.61,7.83982331]
[1735101314971,9.63154331,199.67,199.59,9.63154331]
[1735101315412,9.63154331,199.66,199.58,9.63154331]
[1735101315702,9.63154331,199.64,199.57,9.63154331]
[1735101316289,20.0,199.67,199.58,9.63154331]
[1735101316480,20.0,199.67,199.61,9.63154331]
[1735101316807,10.0141,199.72,199.62,9.63154331]
[1735101316978,9.63154331,199.7,199.62,9.63154331]
[1735101318002,9.63154331,199.69,199.62,9.63154331]
[1735101318206,9.63154331,199.69,199.61,9.63154331]
[1735101318687,9.63154331,199.68,199.57,7.83982331]
[1735101318887,9.63154331,199.65,199.57,9.63154331]
[1735101320105,10.0141,199.72,199.56,11.17744331]
[1735101320106,9.63154331,199.64,199.56,11.17744331]
[1735101320410,9.63154331,199.63,199.56,11.17744331]
[1735101320913,9.63154331,199.63,199.56,1.5459]
[1735101322315,20.0,199.69,199.57,15.08211762]
[1735101322489,15.08211762,199.66,199.57,15.08211762]
[1735101322811,15.08211762,199.64,199.57,15.08211762]
[1735101323010,15.08211762,199.64,199.56,1.5459]
[1735101323219,15.08211762,199.62,199.55,15.08211762]
[1735101324619,15.08211762,199.64,199.57,15.08211762]
[1735101325218,15.08211762,199.66,199.59,15.08211762]
[1735101325917,15.08211762,199.66,199.57,15.08211762]
[1735101327809,15.08211762,199.66,199.59,15.08211762]
[1735101328735,15.08211762,199.68,199.59,16.73731762]
[1735101329022,15.08211762,199.68,199.61,15.08211762]
[1735101329704,15.08211762,199.7,199.63,15.08211762]
[1735101330226,15.08211762,199.72,199.63,15.08211762]
[1735101330635,15.08211762,199.74,199.67,15.08211762]
[1735101331131,20.0137,199.87,199.71,15.08211762]
[1735101331132,15.08211762,199.78,199.71,15.08211762]
[1735101334433,15.08211762,199.78,199.69,15.08211762]
[1735101334632,15.08211762,199.76,199.68,1.6552]
[1735101336708,15.08211762,199.76,199.69,15.08211762]
[1735101336909,15.08211762,199.78,199.69,15.83310583]
[1735101337108,15.08211762,199.78,199.71,15.08211762]
[1735101337626,15.08211762,199.78,199.69,15.08211762]
[1735101340838,15.08211762,199.76,199.68,1.6552]
[1735101341419,15.08211762,199.74,199.67,15.08211762]
[1735101342342,15.02193462,199.76,199.67,15.08211762]
[1735101344134,10.01,199.8,199.66,9.64127665]
[1735101344135,9.64127665,199.75,199.66,9.64127665]
[1735101345636,9.64127665,199.73,199.66,9.64127665]
[1735101346141,29.64127665,199.78,199.7,9.64127665]
[1735101346642,9.64127665,199.78,199.7,9.64127665]
[1735101349645,9.64127665,199.76,199.68,9.64127665]
[1735101350223,15.06337601,199.75,199.67,15.06337601]
[1735101350426,15.06337601,199.77,199.69,15.06337601]
[1735101352048,15.06337601,199.75,199.67,15.06337601]
[1735101352244,15.06337601,199.69,199.63,1.5473]
[1735101352917,15.06337601,199.69,199.6,22.90319932]
[1735101353322,15.06337601,199.65,199.6,7.83982331]
[1735101353650,15.06337601,199.65,199.58,1.5018]
[1735101354148,15.06337601,199.63,199.56,15.06337601]
[1735101354369,15.06337601,199.65,199.56,15.06337601]
[1735101354664,15.06337601,199.69,199.61,15.06337601]
[1735101355947,15.06337601,199.67,199.59,15.06337601]
[1735101356269,15.06337601,199.71,199.63,15.06337601]
[1735101358233,15.06337601,199.69,199.61,15.06337601]
[1735101360251,15.06337601,199.69,199.62,23.776884]
[1735101360430,15.06337601,199.71,199.62,23.776884]
[1735101360632,15.06337601,199.71,199.61,15.81466579]
[1735101360833,15.06337601,199.69,199.61,15.06337601]
[1735101361462,15.06337601,199.69,199.59,35.06337601]
[1735101362142,15.06337601,199.69,199.61,15.06337601]
[1735101363963,15.06337601,199.69,199.59,15.06337601]
[1735101364135,15.06337601,199.67,199.59,15.06337601]
[1735101365773,20.0,199.68,199.61,15.06337601]
[1735101365934,15.06337601,199.7,199.61,15.06337601]
[1735101366454,15.06337601,199.7,199.61,16.71397601]
[1735101366762,15.06337601,199.7,199.63,15.06337601]
[1735101369048,15.06337601,199.7,199.61,16.71397601]
[1735101369270,15.06337601,199.68,199.61,16.71397601]
[1735101375483,15.06337601,199.68,199.61,1.6506]
[1735101375692,15.06337601,199.66,199.57,15.06337601]
[1735101376180,9.6487833,199.67,199.59,9.6487833]
[1735101376485,9.6487833,199.69,199.61,9.6487833]
[1735101377367,9.6487833,199.69,199.62,0.7512283]
[1735101377882,9.6487833,199.69,199.61,9.6487833]
[1735101378204,15.0729314,199.69,199.61,15.0729314]
[1735101378352,11.6524,199.74,199.63,15.0729314]
[1735101378554,15.0729314,199.74,199.65,15.0729314]
[1735101378758,15.0729314,199.76,199.67,15.0729314]
[1735101379310,15.0729314,199.76,199.69,15.0729314]
[1735101379484,15.0729314,199.76,199.68,0.75094737]
[1735101379785,15.0729314,199.74,199.65,15.0729314]
[1735101385094,15.0729314,199.72,199.64,1.5609]
[1735101385296,15.0729314,199.7,199.61,22.91275471]
[1735101385670,15.0729314,199.7,199.61,15.0729314]
[1735101386295,15.0729314,199.68,199.6,8.59094252]
[1735101386603,15.0729314,199.64,199.59,7.83982331]
[1735101387174,15.0729314,199.66,199.59,15.0729314]
[1735101388074,15.0729314,199.68,199.56,0.75138168]
[1735101388276,15.0729314,199.7,199.61,15.0729314]
[1735101388460,15.0729314,199.7,199.63,15.0729314]
[1735101389899,15.0729314,199.7,199.61,15.0729314]
[1735101390110,15.0729314,199.68,199.59,15.0729314]
[1735101398502,20.0,199.69,199.61,15.0729314]
[1735101398688,35.0729314,199.69,199.61,15.0729314]
[1735101400119,35.0729314,199.69,199.59,15.0729314]
[1735101400318,9.64798341,199.68,199.59,9.64798341]
[1735101400622,20.0,199.69,199.59,9.64798341]
[1735101400912,9.64798341,199.68,199.59,9.64798341]
[1735101403920,9.64798341,199.66,199.59,9.64798341]
[1735101405526,9.64798341,199.68,199.59,9.64798341]
[1735101405826,20.0,199.69,199.59,9.64798341]
[1735101406125,10.0154,199.7,199.61,9.64798341]
[1735101406126,9.64798341,199.7,199.61,9.64798341]
[1735101406522,20.0,199.7,199.61,9.64798341]
[1735101406724,20.0,199.7,199.63,9.64798341]
[1735101407424,29.64798341,199.7,199.63,9.64798341]
[1735101407922,29.64798341,199.7,199.61,9.64798341]
[1735101408097,9.64798341,199.68,199.61,17.48780672]
[1735101408729,9.64798341,199.68,199.61,9.64798341]
[1735101412625,9.64798341,199.68,199.6,8.59102677]
[1735101412828,9.64798341,199.68,199.61,9.64798341]
[1735101418637,1.511,199.74,199.61,9.64798341]
[1735101418638,1.511,199.74,199.67,9.64798341]
[1735101418837,15.072932,199.76,199.69,9.64798341]
[1735101419239,11.16558341,199.79,199.71,9.64798341]
[1735101421533,9.64798341,199.77,199.71,9.64798341]
[1735101421708,9.64798341,199.77,199.69,9.64798341]
[1735101422131,1.5176,199.79,199.69,7.87203818]
[1735101422132,9.64798341,199.75,199.69,7.87203818]
[1735101422945,9.64798341,199.75,199.68,1.5637]
[1735101424214,9.64798341,199.75,199.67,9.64798341]
[1735101425138,9.64798341,199.75,199.64,8.62300913]
[1735101425333,9.64798341,199.73,199.65,9.64798341]
[1735101428912,9.64798341,199.69,199.62,17.52002159]
[1735101429118,9.64798341,199.65,199.62,7.87203818]
[1735101429539,9.64798341,199.65,199.61,7.87203818]
[1735101429848,9.64798341,199.62,199.61,7.87203818]
[1735101430625,9.64798341,199.62,199.57,7.87203818]
[1735101431744,9.64798341,199.62,199.53,19.12252159]
[1735101433246,9.64798341,199.62,199.53,11.25048341]
[1735101433746,9.64798341,199.6,199.52,7.87203818]
[1735101433958,9.64798341,199.58,199.52,7.87203818]
[1735101434754,9.64798341,199.58,199.51,0.6348694]
[1735101435850,9.64798341,199.56,199.51,0.6348694]
[1735101438545,20.0,199.59,199.51,0.6348694]
[1735101438847,9.64798341,199.57,199.51,0.6348694]
[1735101442253,10.0172,199.66,199.53,9.64798341]
[1735101442439,9.64798341,199.65,199.56,9.64798341]
[1735101444266,9.64798341,199.65,199.58,9.64798341]
[1735101444569,9.64798341,199.67,199.58,9.64798341]
[1735101445945,11.28858341,199.69,199.6,9.64798341]
[1735101446145,9.64798341,199.71,199.64,9.64798341]
[1735101447638,19.29596741,199.73,199.64,9.64798341]
[1735101448053,19.29596741,199.73,199.66,9.64798341]
[1735101448875,9.64798341,199.73,199.66,9.64798341]
[1735101450073,9.64798341,199.73,199.64,9.64798341]
[1735101450376,15.06852542,199.72,199.64,15.06852542]
[1735101451064,15.06852542,199.7,199.62,15.06852542]
[1735101451573,15.06852542,199.72,199.64,15.06852542]
[1735101457483,1.6602,199.74,199.64,15.06852542]
[1735101457782,15.06852542,199.73,199.64,15.06852542]
[1735101463465,15.06852542,199.71,199.62,15.06852542]
[1735101472296,9.64520755,199.71,199.62,9.64520755]
[1735101473089,9.64520755,199.69,199.58,20.0]
[1735101473297,9.64520755,199.67,199.58,9.64520755]
[1735101473465,9.64520755,199.65,199.58,9.64520755]
[1735101479403,9.64520755,199.65,199.56,9.64520755]
[1735101479585,9.64520755,199.63,199.55,9.64520755]
[1735101480378,11.15250755,199.63,199.55,9.64520755]
[1735101483197,1.5073,199.63,199.57,9.64520755]
[1735101484718,1.5073,199.63,199.51,0.6348694]
[1735101484719,9.64520755,199.61,199.51,0.6348694]
[1735101484894,9.64520755,199.59,199.51,0.6348694]
[1735101485411,9.64520755,199.55,199.51,0.6348694]
[1735101485709,16.23595525,199.55,199.51,0.6348694]
[1735101487613,9.64520755,199.53,199.51,0.6348694]
[1735101492117,6.651,199.55,199.51,0.6348694]
[1735101492287,1.5073,199.56,199.51,0.6348694]
[1735101492487,29.64520755,199.58,199.51,10.28007695]
[1735101495221,29.64520755,199.58,199.51,0.6348694]
[1735101495406,9.64520755,199.56,199.51,0.6348694]
[1735101495717,29.64520755,199.58,199.51,0.6348694]
[1735101496095,20.0,199.58,199.52,9.64520755]
[1735101497486,29.64520755,199.58,199.51,0.6348694]
[1735101502493,9.64520755,199.56,199.51,0.6348694]
[1735101507127,9.64520755,199.52,199.51,0.6348694]
[1735101512732,33.42209155,199.52,199.51,0.6348694]
[1735101513615,33.42209155,199.52,199.51,6.94e-05]
[1735101517629,33.54758155,199.52,199.51,6.94e-05]
[1735101519120,20.12549,199.47,199.36,1.6622]
[1735101519316,23.776884,199.46,199.36,11.30740755]
[1735101519513,9.64520755,199.45,199.38,9.64520755]
[1735101520343,9.64520755,199.45,199.36,1.6622]
[1735101520526,9.64520755,199.45,199.36,11.30740755]
[1735101522168,10.0263,199.48,199.36,11.30740755]
[1735101522369,10.024,199.52,199.38,9.64520755]
[1735101522542,9.64520755,199.47,199.38,9.64520755]
[1735101525554,9.64520755,199.45,199.36,11.30740755]
[1735101529474,9.64520755,199.43,199.36,11.30740755]
[1735101529689,9.64520755,199.43,199.36,1.6622]
[1735101530560,9.64520755,199.41,199.36,1.6622]
[1735101530764,9.64520755,199.41,199.32,10.28007695]
[1735101532696,9.64520755,199.39,199.32,10.28007695]
[1735101533663,9.64520755,199.41,199.32,10.28007695]
[1735101533973,20.0,199.42,199.34,9.64520755]
[1735101534185,10.0261,199.48,199.36,9.64520755]
[1735101534382,9.64520755,199.44,199.36,9.64520755]
[1735101535291,6.23955575,199.51,199.37,8.147]
[1735101535501,9.64520755,199.45,199.37,8.147]
[1735101535797,9.64520755,199.45,199.38,9.64520755]
[1735101537410,9.64520755,199.47,199.4,9.64520755]
[1735101537690,9.64520755,199.5,199.42,9.64520755]
[1735101542121,9.64520755,199.48,199.4,9.64520755]
[1735101542318,9.64520755,199.46,199.38,9.64520755]
[1735101544511,9.64520755,199.48,199.4,9.64520755]
[1735101546142,20.0,199.49,199.4,9.64520755]
[1735101546442,1.6166,199.53,199.4,9.64520755]
[1735101546443,12.6989185,199.57,199.44,9.64520755]
[1735101546631,9.64520755,199.56,199.48,9.64520755]
[1735101546943,9.64520755,199.56,199.49,1.5417]
[1735101547322,10.0195,199.62,199.5,9.64520755]
[1735101547522,9.64520755,199.6,199.52,9.64520755]
[1735101550445,10.0172,199.66,199.54,9.64520755]
[1735101550738,9.64520755,199.63,199.54,9.64520755]
[1735101553047,9.64520755,199.63,199.52,0.75152701]
[1735101553216,9.64520755,199.61,199.54,9.64520755]
[1735101553552,10.0172,199.66,199.51,6.0579]
[1735101553553,9.64520755,199.57,199.51,6.0579]
[1735101554450,9.64520755,199.55,199.51,6.0579]
[1735101554816,9.64520755,199.53,199.49,1.5417]
[1735101555152,9.64520755,199.55,199.49,1.5417]
[1735101555648,20.0,199.58,199.49,1.5417]
[1735101555832,9.64520755,199.55,199.49,1.5417]
[1735101562971,9.64520755,199.53,199.46,6.0579]
[1735101563173,38.37569,199.61,199.44,1.569]
[1735101563174,9.64520755,199.49,199.44,1.569]
[1735101563540,23.776884,199.55,199.44,1.569]
[1735101563752,9.64520755,199.52,199.44,1.569]
[1735101564965,29.64520755,199.54,199.45,9.64520755]
[1735101566960,9.64520755,199.5,199.44,1.569]
[1735101567500,9.64520755,199.48,199.44,1.569]
[1735101567695,9.64520755,199.48,199.4,15.69640755]
[1735101567904,9.64520755,199.48,199.4,6.0512]
[1735101568278,9.64520755,199.46,199.4,6.0512]
[1735101569400,9.64520755,199.46,199.39,1.5956]
[1735101570915,9.64520755,199.44,199.39,1.5956]
[1735101571399,9.64520755,199.44,199.35,15.69640755]
[1735101573321,9.64520755,199.42,199.35,15.69640755]
[1735101575117,9.64520755,199.42,199.35,6.0512]
[1735101577593,10.027,199.47,199.35,6.0512]
[1735101577801,9.64520755,199.44,199.35,15.69640755]
[1735101578136,9.64520755,199.44,199.37,9.64520755]
[1735101578437,20.0,199.48,199.39,9.64520755]
[1735101578626,9.64520755,199.47,199.39,9.64520755]
[1735101587138,9.64520755,199.45,199.37,9.64520755]
[1735101589537,9.64520755,199.43,199.35,15.69640755]
[1735101590538,9.645208,199.52,199.39,9.64520755]
[1735101590719,9.64520755,199.5,199.41,9.64520755]
[1735101590910,9.64520755,199.52,199.43,9.64520755]
[1735101591110,9.64520755,199.52,199.43,10.39710042]
[1735101591525,9.64520755,199.5,199.43,9.64520755]
[1735101592141,9.64520755,199.5,199.41,6.1617]
[1735101592434,9.64520755,199.48,199.41,6.1617]
[1735101593213,9.64520755,199.48,199.41,15.80690755]
[1735101593639,10.0225,199.55,199.43,9.64520755]
[1735101593640,20.0,199.52,199.43,9.64520755]
[1735101593947,9.64520755,199.51,199.43,9.64520755]
[1735101600950,9.64520755,199.51,199.44,0.75193336]
[1735101601563,1.5831,199.57,199.45,9.64520755]
[1735101601865,9.64520755,199.55,199.47,9.64520755]
[1735101602156,9.64520755,199.55,199.48,6.054]
[1735101602745,9.64520755,199.53,199.48,6.054]
[1735101603736,9.64520755,199.53,199.46,1.6269]
[1735101606131,9.64520755,199.55,199.46,1.6269]
[1735101608260,9.64520755,199.53,199.46,1.6269]
[1735101613266,9.64520755,199.53,199.46,2.37868862]
[1735101613642,23.776884,199.59,199.47,9.64520755]
[1735101613939,10.017,199.66,199.5,6.4847]
[1735101614259,9.64520755,199.59,199.51,9.64520755]
[1735101614461,9.64520755,199.61,199.51,9.64520755]
[1735101614643,9.64520755,199.61,199.52,1.5405]
[1735101615366,9.64520755,199.59,199.52,1.5405]
[1735101615574,9.64520755,199.57,199.52,1.5405]
[1735101616250,9.64520755,199.55,199.5,6.4847]
[1735101616450,9.64520755,199.55,199.47,11.18570755]
[1735101625687,9.64520755,199.55,199.47,1.5405]
[1735101626380,9.64520755,199.53,199.47,1.5405]
[1735101627965,9.64520755,199.51,199.42,9.48273818]
[1735101628469,9.64520755,199.49,199.42,9.48273818]
[1735101628665,9.64520755,199.47,199.42,9.48273818]
[1735101628866,9.64520755,199.47,199.42,1.6107]
[1735101630066,9.64520755,199.47,199.4,6.2122]
[1735101631094,9.64520755,199.47,199.4,15.85740755]
[1735101631294,9.64520755,199.49,199.4,15.85740755]
[1735101631696,9.64520755,199.49,199.4,6.2122]
[1735101631862,9.64520755,199.49,199.4,15.85740755]
[1735101634165,9.64520755,199.47,199.4,6.2122]
[1735101637488,9.64520755,199.47,199.4,15.85740755]
[1735101637676,20.0,199.48,199.4,15.85740755]
[1735101638185,9.64520755,199.49,199.4,15.85740755]
[1735101639311,9.64520755,199.49,199.38,1.6107]
[1735101639312,9.64520755,199.47,199.38,1.6107]
[1735101639622,9.64520755,199.45,199.38,1.6107]
[1735101643520,1.6503,199.51,199.35,20.40342474]
[1735101643521,9.64520755,199.41,199.35,7.86332474]
[1735101644180,9.64520755,199.41,199.34,6.5732]
[1735101644794,9.64520755,199.41,199.34,16.21840755]
[1735101646187,9.64520755,199.41,199.34,6.5732]
[1735101648920,9.64520755,199.41,199.34,16.21840755]
[1735101649433,20.0,199.42,199.34,16.21840755]
[1735101649747,9.64520755,199.43,199.34,16.21840755]
[1735101650926,9.64520755,199.41,199.34,6.5732]
[1735101651110,9.64520755,199.39,199.33,1.6523]
[1735101651431,9.64520755,199.37,199.32,0.6348694]
[1735101654521,9.64520755,199.35,199.32,0.6348694]
[1735101658426,9.64520755,199.33,199.32,0.6348694]
[1735101662162,20.0,199.39,199.32,0.6348694]
[1735101662352,9.64520755,199.37,199.32,0.6348694]
[1735101665357,9.64520755,199.39,199.32,2.2016694]
[1735101669134,9.64520755,199.42,199.33,9.64520755]
[1735101670168,9.64520755,199.38,199.32,2.2016694]
[1735101674728,9.64520755,199.34,199.32,0.6348694]
[1735101685286,9.64520755,199.33,199.32,0.6348694]
[1735101697966,20.0,199.34,199.32,0.6348694]
[1735101698172,9.64520755,199.34,199.32,0.6348694]
[1735101701707,23.776884,199.33,199.32,0.6348694]
[1735101706518,20.0,199.34,199.32,0.6348694]
[1735101706721,10.0316,199.37,199.32,0.6348694]
[1735101707024,9.64520755,199.37,199.32,0.6348694]
[1735101707191,1.5623,199.45,199.32,0.6348694]
[1735101707396,1.5623,199.45,199.32,10.28007695]
[1735101707596,9.64520755,199.41,199.32,10.28007695]
[1735101708035,9.64520755,199.39,199.32,10.28007695]
[1735101708199,10.027,199.46,199.32,10.28007695]
[1735101708389,9.64520755,199.4,199.32,10.28007695]
[1735101717038,9.64520755,199.38,199.32,0.6348694]
[1735101719412,10.0291,199.42,199.32,0.6348694]
[1735101719617,9.64520755,199.39,199.32,0.6348694]
[1735101726445,10.0291,199.42,199.32,0.6348694]
[1735101726655,10.0275,199.45,199.34,7.662]
[1735101726832,9.64520755,199.42,199.34,7.662]
[1735101728615,9.64520755,199.4,199.34,7.662]
[1735101733557,9.64520755,199.38,199.34,7.662]
[1735101733762,9.64520755,199.38,199.34,1.5125]
[1735101733945,9.64520755,199.36,199.32,0.6348694]
[1735101734256,38.7063202,199.44,199.32,0.6348694]
[1735101734257,9.64520755,199.34,199.32,0.6348694]
[1735101735064,20.0,199.37,199.32,0.6348694]
[1735101735229,9.64520755,199.33,199.32,0.6348694]
[1735101741067,11.20040755,199.33,199.32,0.6348694]
[1735101741242,20.0,199.29,199.17,31.45329896]
[1735101741437,9.64520755,199.24,199.17,31.45329896]
[1735101741853,9.64520755,199.24,199.18,7.86332474]
[1735101742656,9.64520755,199.24,199.16,11.98978554]
[1735101744873,9.64520755,199.24,199.16,1.5917]
[1735101745038,9.64520755,199.24,199.16,11.23690755]
[1735101745348,9.64520755,199.25,199.17,9.64520755]
[1735101745761,9.64520755,199.25,199.18,9.64520755]
[1735101746276,16.4535,199.32,199.19,0.75285647]
[1735101746565,9.64520755,199.28,199.21,9.64520755]
[1735101746933,16.4535,199.32,199.21,9.64520755]
[1735101747137,9.64520755,199.28,199.21,9.64520755]
[1735101747547,9.64520755,199.29,199.22,0.75275173]
[1735101747743,1.5552,199.33,199.23,9.64520755]
[1735101747956,9.64520755,199.31,199.23,9.64520755]
[1735101748169,9.64520755,199.31,199.24,0.75265173]
[1735101748970,9.64520755,199.31,199.23,9.64520755]
[1735101750372,9.64520755,199.28,199.2,10.39785145]
[1735101750742,9.64520755,199.26,199.19,9.64520755]
[1735101751296,9.64520755,199.25,199.18,9.64520755]
[1735101751784,9.64520755,199.26,199.18,9.64520755]
[1735101751998,9.64520755,199.26,199.19,9.64520755]
[1735101752370,9.64520755,199.28,199.2,10.39803883]
[1735101755699,9.64520755,199.27,199.2,0.75283128]
[1735101755901,9.64520755,199.27,199.19,9.77069755]
[1735101757799,9.64520755,199.27,199.2,0.75276338]
[1735101759203,20.0,199.3,199.2,0.75276338]
[1735101759384,9.64520755,199.26,199.19,9.64520755]
[1735101760109,9.64520755,199.26,199.17,9.64520755]
[1735101760775,20.0,199.3,199.16,1.5917]
[1735101760776,9.64520755,199.24,199.16,1.5917]
[1735101761184,9.64520755,199.22,199.16,1.5917]
[1735101769832,9.64520755,199.2,199.12,2.1656694]
[1735101771197,9.64520755,199.16,199.12,0.6348694]
[1735101771396,9.64520755,199.15,199.12,0.6348694]
[1735101786230,11.93633217,199.24,199.12,0.6348694]
[1735101786433,9.64520755,199.2,199.12,10.28007695]
[1735101786607,1.5186,199.25,199.14,9.64520755]
[1735101786809,9.64520755,199.22,199.14,11.19150755]
[1735101787315,13.29305,199.29,199.15,9.64520755]
[1735101787515,9.64520755,199.23,199.15,9.64520755]
[1735101787833,9.64520755,199.23,199.17,9.64520755]
[1735101788337,9.64520755,199.25,199.17,9.64520755]
[1735101788633,9.64520755,199.24,199.16,9.64520755]
[1735101789977,9.64520755,199.23,199.16,9.64520755]
[1735101794650,20.0,199.25,199.16,9.64520755]
[1735101794838,29.64520755,199.25,199.17,0.75291123]
[1735101795342,29.64520755,199.25,199.16,10.39810614]
[1735101798567,9.64520755,199.23,199.16,10.39810614]
[1735101799176,20.0,199.25,199.16,10.39810614]
[1735101799474,9.64520755,199.23,199.16,10.39810614]
[1735101806975,9.64520755,199.22,199.16,0.75289859]
[1735101807148,20.0,199.25,199.14,8.0637]
[1735101807469,9.64520755,199.19,199.14,8.0637]
[1735101808405,20.0,199.25,199.17,9.64520755]
[1735101808610,9.64520755,199.25,199.17,9.64520755]
[1735101809504,10.0351,199.3,199.17,9.64520755]
[1735101809711,9.64520755,199.26,199.17,10.39812103]
[1735101810679,9.64520755,199.26,199.17,9.64520755]
[1735101811702,9.64520755,199.26,199.17,10.39805164]
[1735101813428,9.64520755,199.24,199.17,9.64520755]
[1735101813727,9.64520755,199.24,199.15,22.19800755]
[1735101813904,9.64520755,199.24,199.16,0.75293752]
[1735101814326,9.64520755,199.24,199.17,9.64520755]
[1735101815529,9.64520755,199.25,199.17,9.64520755]
[1735101819629,20.0,199.27,199.17,9.64520755]
[1735101819836,9.64520755,199.25,199.17,9.64520755]
[1735101824526,9.64520755,199.25,199.16,0.75293752]
[1735101824831,9.64520755,199.26,199.16,10.39814507]